bitfinex-derivatives/quotes_BTCF0:USTF0_20250427
["timestamp","ask_amount","ask_price","bid_price","bid_amount"]
[1745718907246,0.3618,94463.0,94462.0,0.4062364]
[1745718907646,0.3608,94463.0,94462.0,0.4002364]
[1745718907848,0.3638,94463.0,94462.0,0.4002364]
[1745718908348,0.3628,94463.0,94462.0,0.4002364]
[1745718908547,0.01535338,94466.0,94465.0,0.2116296]
[1745718908754,0.1917,94481.0,94480.0,0.2115961]
[1745718909052,0.3876,94481.0,94473.0,0.0529027]
[1745718909252,0.40203293,94481.0,94474.0,0.373]
[1745718909452,0.40203293,94481.0,94477.0,0.2116015]
[1745718909752,0.40203293,94481.0,94478.0,0.1897]
[1745718910253,0.40203293,94481.0,94480.0,0.2115961]
[1745718910552,0.20613293,94481.0,94480.0,0.2115961]
[1745718911053,0.20613293,94481.0,94480.0,0.4047961]
[1745718911753,0.21213293,94481.0,94480.0,0.4047961]
[1745718913840,0.21113293,94481.0,94480.0,0.4047961]
[1745718915545,0.21213293,94481.0,94480.0,0.4047961]
[1745718919760,0.21213293,94481.0,94476.0,0.08787467]
[1745718919947,0.3698,94480.0,94476.0,0.08787467]
[1745718920353,0.404,94479.0,94476.0,0.08787467]
[1745718920557,0.1924,94479.0,94476.0,0.08787467]
[1745718920752,0.1849,94478.0,94477.0,0.2116028]
[1745718921455,0.1849,94478.0,94477.0,0.4000028]
[1745718922260,0.1899,94478.0,94477.0,0.4000028]
[1745718922453,0.1899,94478.0,94476.0,0.08787467]
[1745718922656,0.1919,94477.0,94476.0,0.08787467]
[1745718923858,0.1919,94477.0,94476.0,0.29947967]
[1745718924058,0.1969,94477.0,94476.0,0.29947967]
[1745718925352,0.1969,94477.0,94476.0,0.08787467]
[1745718926053,0.1969,94477.0,94476.0,0.49047967]
[1745718929866,0.1969,94477.0,94476.0,0.27887467]
[1745718930262,0.1969,94477.0,94476.0,0.08787467]
[1745718931362,0.4085028,94477.0,94476.0,0.08787467]
[1745718932258,0.2116137,94473.0,94464.0,0.2116303]
[1745718932459,0.3683,94472.0,94465.0,0.2116296]
[1745718934459,0.3683,94472.0,94466.0,0.2116274]
[1745718935067,0.3713,94472.0,94466.0,0.2116274]
[1745718936164,0.3713,94472.0,94467.0,0.2116239]
[1745718936966,0.5829141,94472.0,94467.0,0.2116239]
[1745718937267,0.3713,94472.0,94463.0,0.1838]
[1745718937568,0.5829142,94472.0,94468.0,0.2116222]
[1745718938069,0.5829141,94472.0,94468.0,0.211622]
[1745718938861,0.5839141,94472.0,94468.0,0.211622]
[1745718939767,0.2116165,94471.0,94467.0,0.1801]
[1745718939972,0.3723,94472.0,94468.0,0.2116225]
[1745718940173,0.1932,94470.0,94469.0,0.2116207]
[1745718940778,0.1932,94470.0,94467.0,0.3917242]
[1745718940972,0.4024209,94469.0,94462.0,0.188]
[1745718941172,0.4024209,94469.0,94456.0,0.1906]
[1745718941173,0.2116364,94462.0,94456.0,0.1906]
[1745718941476,0.5724321,94464.0,94456.0,0.3714]
[1745718941663,0.7738352,94463.0,94457.0,0.2116472]
[1745718941865,0.7738352,94463.0,94456.0,0.3714]
[1745718941866,0.5622,94463.0,94456.0,0.3714]
[1745718942873,0.5622,94463.0,94459.0,0.211643]
[1745718943078,0.5642,94463.0,94456.0,0.3714]
[1745718943277,0.5642,94463.0,94458.0,0.0529112]
[1745718943478,0.5642,94463.0,94461.0,0.2132258]
[1745718944179,0.5642,94463.0,94461.0,0.0015881]
[1745718944574,0.2116364,94462.0,94461.0,0.0015881]
[1745718944969,0.5805364,94462.0,94461.0,0.0015881]
[1745718945376,0.052917,94448.0,94436.0,0.08764]
[1745718945677,0.3964701,94447.0,94442.0,0.3815]
[1745718945873,0.6112176,94447.0,94439.0,0.00158847]
[1745718946070,0.2116857,94440.0,94439.0,0.00158847]
[1745718946974,0.5907857,94440.0,94439.0,0.00158847]
[1745718947179,0.9515857,94440.0,94439.0,0.00158847]
[1745718947579,0.95952532,94440.0,94439.0,0.00158847]
[1745718948281,0.96352532,94440.0,94439.0,0.00158847]
[1745718954386,0.75183962,94440.0,94439.0,0.00158847]
[1745718955087,0.96352532,94440.0,94439.0,0.00158847]
[1745718955287,0.75183962,94440.0,94439.0,0.00158847]
[1745718955786,0.96352532,94440.0,94439.0,0.00158847]
[1745718959789,0.2117058,94431.0,94430.0,0.00105898]
[1745718959982,0.5725058,94431.0,94430.0,0.00105898]
[1745718960788,0.9503058,94431.0,94430.0,0.00105898]
[1745718961288,0.9523058,94431.0,94430.0,0.00105898]
[1745718961688,0.7406,94431.0,94430.0,0.00105898]
[1745718962593,0.7406,94431.0,94430.0,0.19115898]
[1745718963281,0.75447665,94431.0,94430.0,0.19115898]
[1745718964983,0.57317665,94431.0,94430.0,0.19115898]
[1745718970484,0.76587665,94431.0,94430.0,0.19115898]
[1745718971093,0.97758245,94431.0,94430.0,0.19115898]
[1745718972090,0.76587665,94431.0,94430.0,0.19115898]
[1745718972898,0.97758245,94431.0,94430.0,0.19115898]
[1745718973801,0.37667665,94431.0,94430.0,0.19115898]
[1745718974388,0.58838245,94431.0,94430.0,0.19115898]
[1745718975396,0.58838245,94431.0,94430.0,0.00105898]
[1745718979207,0.22758245,94431.0,94430.0,0.00105898]
[1745718979396,0.58838245,94431.0,94430.0,0.00105898]
[1745718979594,0.58838245,94431.0,94427.0,0.00331406]
[1745718979595,0.37667665,94431.0,94427.0,0.00331406]
[1745718979800,0.4838,94430.0,94402.0,0.0529426]
[1745718979998,0.3608,94415.0,94407.0,0.5839595]
[1745718980207,0.211747,94413.0,94410.0,0.1988]
[1745718980396,0.3926,94412.0,94410.0,0.1988]
[1745718981302,0.3926,94412.0,94411.0,0.1848]
[1745718981900,0.3936,94412.0,94411.0,0.1848]
[1745718983505,0.1964,94412.0,94411.0,0.1848]
[1745718983708,0.1954,94412.0,94411.0,0.1848]
[1745718983906,0.1954,94412.0,94411.0,0.3724]
[1745718987004,0.1954,94412.0,94411.0,0.5841507]
[1745718989714,0.1954,94412.0,94411.0,0.3724]
[1745718995618,0.1954,94412.0,94411.0,0.5841507]
[1745718996017,0.1954,94412.0,94411.0,0.3724]
[1745718999320,0.1954,94412.0,94411.0,0.1876]
[1745718999614,0.1954,94412.0,94409.0,0.00158871]
[1745718999814,0.2117529,94410.0,94409.0,0.00158871]
[1745719000210,0.3984529,94410.0,94409.0,0.00158871]
[1745719005020,0.3994529,94410.0,94409.0,0.00158871]
[1745719005628,0.1877,94410.0,94409.0,0.00158871]
[1745719006029,0.001,94410.0,94409.0,0.21334391]
[1745719007018,0.001,94410.0,94409.0,0.60374391]
[1745719007214,0.001,94410.0,94409.0,0.39198871]
[1745719008925,0.001,94410.0,94409.0,0.19498871]
[1745719013116,0.2127529,94410.0,94409.0,0.00158871]
[1745719014219,0.6073529,94410.0,94409.0,0.00158871]
[1745719015724,0.6073529,94410.0,94402.0,0.3866]
[1745719015923,0.6073529,94410.0,94403.0,0.2117684]
[1745719016330,0.2117555,94409.0,94402.0,0.3866]
[1745719016629,0.3608,94406.0,94402.0,0.3866]
[1745719016817,0.3608,94406.0,94402.0,0.5983708]
[1745719017016,0.372,94405.0,94404.0,0.2117664]
[1745719017617,0.3717874,94405.0,94403.0,0.1991]
[1745719018221,0.3717874,94405.0,94404.0,0.2117664]
[1745719018622,0.1853874,94405.0,94404.0,0.2117664]
[1745719020826,0.0529289,94427.0,94413.0,0.2117448]
[1745719021025,0.1899,94417.0,94414.0,0.3812]
[1745719021426,0.3893,94417.0,94414.0,0.3812]
[1745719023738,0.3923,94417.0,94414.0,0.3812]
[1745719024738,0.1929,94417.0,94414.0,0.3812]
[1745719024929,0.003,94417.0,94416.0,0.2117395]
[1745719025738,0.003,94417.0,94414.0,0.5929434]
[1745719026036,0.1991,94416.0,94415.0,0.2117417]
[1745719026231,0.1991,94416.0,94415.0,0.4026417]
[1745719027534,0.2021,94416.0,94415.0,0.4026417]
[1745719030630,0.2021,94416.0,94415.0,0.1909]
[1745719030828,0.4138395,94416.0,94415.0,0.1909]
[1745719031031,0.2117417,94415.0,94414.0,0.1864]
[1745719031227,0.2117417,94415.0,94408.0,0.3608]
[1745719031228,0.0529372,94412.0,94408.0,0.3608]
[1745719031532,0.1828,94411.0,94409.0,0.186]
[1745719031731,0.3745,94411.0,94409.0,0.186]
[1745719031937,0.3745,94411.0,94409.0,0.3977534]
[1745719032340,0.3745,94411.0,94410.0,0.2117529]
[1745719032542,0.3755,94411.0,94410.0,0.2117529]
[1745719032941,0.3755,94411.0,94409.0,0.186]
[1745719033336,0.3755,94411.0,94409.0,0.3977533]
[1745719033544,0.3745,94411.0,94409.0,0.186]
[1745719033740,0.3765,94411.0,94409.0,0.186]
[1745719034144,0.3755,94411.0,94410.0,0.2117529]
[1745719034344,0.3755,94411.0,94409.0,0.186]
[1745719035249,0.3755,94411.0,94410.0,0.1945]
[1745719035543,0.3755,94411.0,94410.0,0.4062529]
[1745719035747,0.3765,94411.0,94410.0,0.1945]
[1745719036643,0.3765,94411.0,94409.0,0.186]
[1745719036945,0.3765,94411.0,94409.0,0.5922549]
[1745719037642,0.3765,94411.0,94410.0,0.2117529]
[1745719037833,0.3765,94411.0,94410.0,0.3975529]
[1745719038035,0.3765,94411.0,94410.0,0.5954529]
[1745719038236,0.3765,94411.0,94407.0,0.08787467]
[1745719038237,0.2117572,94409.0,94407.0,0.08787467]
[1745719038541,0.5973574,94408.0,94407.0,0.08264536]
[1745719038745,0.5973574,94408.0,94407.0,0.04909723]
[1745719039842,0.6003574,94408.0,94407.0,0.04909723]
[1745719040846,0.3886,94408.0,94407.0,0.04909723]
[1745719041437,0.3886,94408.0,94401.0,0.575]
[1745719041640,0.3886,94408.0,94401.0,0.6279429]
[1745719041945,0.3886,94408.0,94404.0,0.2117663]
[1745719042246,0.3886,94408.0,94405.0,0.3792]
[1745719042549,0.3866,94408.0,94405.0,0.3792]
[1745719043043,0.3876,94408.0,94405.0,0.3792]
[1745719043250,0.3876,94408.0,94407.0,0.2117597]
[1745719043551,0.3856,94408.0,94405.0,0.5909637]
[1745719043737,0.3876,94408.0,94405.0,0.5909637]
[1745719044636,0.5993574,94408.0,94405.0,0.3792]
[1745719044836,0.3876,94408.0,94405.0,0.1994]
[1745719047246,0.3876,94408.0,94401.0,0.1958]
[1745719047447,0.3608,94404.0,94400.0,0.10105932]
[1745719047638,0.2117718,94402.0,94400.0,0.10105932]
[1745719047842,0.3744,94401.0,94400.0,0.10105932]
[1745719048343,0.5861731,94401.0,94400.0,0.10105932]
[1745719048952,0.3744,94401.0,94400.0,0.10105932]
[1745719049454,0.3754,94401.0,94400.0,0.10105932]
[1745719051148,0.5871731,94401.0,94400.0,0.10105932]
[1745719051553,0.3754,94401.0,94400.0,0.10105932]
[1745719053049,0.5871731,94401.0,94400.0,0.10105932]
[1745719053950,0.3754,94401.0,94400.0,0.10105932]
[1745719056446,0.5871731,94401.0,94400.0,0.10105932]
[1745719056652,0.5552,94401.0,94400.0,0.10105932]
[1745719056851,0.3754,94401.0,94400.0,0.10105932]
[1745719058158,0.5871731,94401.0,94400.0,0.10105932]
[1745719058557,0.5871731,94401.0,94400.0,0.28745932]
[1745719058753,0.5871731,94401.0,94400.0,0.10105932]
[1745719061657,0.6931051,94401.0,94400.0,0.03903725]
[1745719061960,0.2117799,94398.0,94397.0,1e-08]
[1745719062256,0.5725799,94398.0,94397.0,1e-08]
[1745719064950,0.6785159,94398.0,94397.0,1e-08]
[1745719065856,0.6815159,94398.0,94397.0,1e-08]
[1745719067754,0.2117928,94393.0,94381.0,0.39266001]
[1745719067955,0.3608,94385.0,94381.0,0.39266001]
[1745719068262,0.182,94384.0,94381.0,0.39266001]
[1745719068459,0.3709,94384.0,94381.0,0.39266001]
[1745719072171,0.38412178,94384.0,94381.0,0.39266001]
[1745719075569,0.38412178,94384.0,94381.0,0.19946001]
[1745719075769,0.38412178,94384.0,94380.0,0.00158946]
[1745719075971,0.2118315,94375.0,94374.0,0.1825]
[1745719076161,0.2118363,94373.0,94368.0,0.37517019]
[1745719076366,0.1806,94372.0,94368.0,0.37517019]
[1745719076574,0.372,94372.0,94368.0,0.37517019]
[1745719076762,0.2118404,94371.0,94368.0,0.37517019]
[1745719077163,0.372,94370.0,94368.0,0.37517019]
[1745719077358,0.372,94370.0,94368.0,0.57127019]
[1745719079170,0.2118449,94369.0,94368.0,0.57127019]
[1745719079359,0.2118449,94369.0,94368.0,0.1912]
[1745719079566,0.5809449,94369.0,94368.0,0.1912]
[1745719080161,0.5809449,94369.0,94368.0,0.3797]
[1745719080360,0.5819449,94369.0,94368.0,0.3797]
[1745719080566,0.5819449,94369.0,94368.0,0.1912]
[1745719081064,0.3701,94369.0,94368.0,0.1912]
[1745719081265,0.52987,94368.0,94345.0,0.00159005]
[1745719081462,0.2119078,94341.0,94337.0,0.00238169]
[1745719081669,0.3608,94338.0,94323.0,0.3608]
[1745719081870,0.11326007,94350.0,94315.0,0.00635693]
[1745719081871,0.211964,94316.0,94315.0,0.00635693]
[1745719082074,0.2119775,94310.0,94309.0,0.16199938]
[1745719082671,0.22001087,94310.0,94309.0,0.16199938]
[1745719082859,0.22463511,94310.0,94309.0,0.16199938]
[1745719083572,0.41383511,94310.0,94309.0,0.16199938]
[1745719083775,0.51986711,94310.0,94309.0,0.16199938]
[1745719084071,0.63986711,94310.0,94309.0,0.16199938]
[1745719084572,1.42003711,94310.0,94309.0,0.01550673]
[1745719084764,1.17003711,94310.0,94309.0,0.01550673]
[1745719084967,0.72973511,94310.0,94309.0,0.01550673]
[1745719085266,0.01265761,94310.0,94309.0,0.2119797]
[1745719085572,0.3608,94312.0,94308.0,0.57]
[1745719085770,0.0529938,94311.0,94307.0,0.00530181]
[1745719085975,0.2119811,94309.0,94307.0,0.00530181]
[1745719086172,0.211982,94308.0,94307.0,0.00530181]
[1745719086371,0.407882,94308.0,94307.0,0.00530181]
[1745719086875,0.1959,94308.0,94307.0,0.00530181]
[1745719087172,0.003,94311.0,94310.0,0.2119775]
[1745719087361,0.1819,94310.0,94307.0,0.00530181]
[1745719087567,0.1819,94310.0,94308.0,0.3661]
[1745719087761,0.37401457,94312.0,94308.0,0.3661]
[1745719088173,0.37401457,94312.0,94309.0,0.1985]
[1745719088367,0.2119775,94310.0,94309.0,0.1985]
[1745719088778,0.211982,94308.0,94307.0,0.00530181]
[1745719089974,0.215982,94308.0,94307.0,0.00530181]
[1745719090373,0.211982,94308.0,94307.0,0.00530181]
[1745719090570,0.215982,94308.0,94307.0,0.00530181]
[1745719090766,0.215982,94308.0,94238.0,0.3608]
[1745719090767,0.3608,94296.0,94238.0,0.3608]
[1745719090965,0.3402,94308.0,94238.0,0.3608]
[1745719090966,0.2121102,94251.0,94238.0,0.3608]
[1745719091166,0.2121102,94251.0,94236.0,0.191]
[1745719091167,0.6929102,94251.0,94236.0,0.191]
[1745719091363,0.2121484,94234.0,94233.0,0.26626979]
[1745719091567,0.9337484,94234.0,94233.0,0.26626979]
[1745719091767,0.72939268,94234.0,94233.0,0.26626979]
[1745719091972,0.72939268,94234.0,94233.0,0.06010905]
[1745719092175,0.95551268,94234.0,94226.0,0.32000517]
[1745719092372,0.3761,94233.0,94226.0,0.32000517]
[1745719093281,0.1858,94233.0,94226.0,0.32100517]
[1745719093478,0.7216,94234.0,94232.0,0.2121529]
[1745719093682,0.3608,94234.0,94233.0,0.5921507]
[1745719094384,0.1843,94247.0,94242.0,0.0530324]
[1745719094569,0.1843,94247.0,94243.0,0.38]
[1745719094774,0.1843,94247.0,94230.0,0.21246016]
[1745719095077,0.3608,94239.0,94237.0,0.1935]
[1745719095282,0.212145,94236.0,94231.0,0.1865]
[1745719095477,0.1843,94235.0,94232.0,0.1935]
[1745719095678,0.1843,94235.0,94233.0,0.1865]
[1745719095873,0.1876,94234.0,94233.0,0.1865]
[1745719096388,0.1876,94234.0,94230.0,0.00030396]
[1745719096682,0.5729552,94231.0,94230.0,0.00030396]
[1745719096981,0.5729552,94231.0,94230.0,1e-08]
[1745719097388,0.3608,94231.0,94230.0,1e-08]
[1745719097783,0.3608,94231.0,94230.0,0.00100001]
[1745719097985,0.5729552,94231.0,94230.0,0.00100001]
[1745719098183,0.3608,94231.0,94230.0,0.00100001]
[1745719099389,0.5729552,94231.0,94230.0,0.00100001]
[1745719099880,0.3608,94231.0,94230.0,0.21315741]
[1745719100080,0.3608,94231.0,94230.0,0.33315741]
[1745719100282,0.3608,94231.0,94230.0,1.21989141]
[1745719100478,0.3748,94249.0,94230.0,1.36853401]
[1745719100691,0.3748,94249.0,94235.0,0.0530361]
[1745719100889,0.3748,94249.0,94237.0,0.0530352]
[1745719101085,0.1889,94249.0,94237.0,0.0530352]
[1745719101281,0.1889,94249.0,94237.0,0.12]
[1745719101481,0.1889,94249.0,94239.0,0.2121354]
[1745719101682,0.3608,94251.0,94239.0,0.3608]
[1745719101882,0.3748,94270.0,94261.0,0.2120877]
[1745719102185,0.3748,94270.0,94261.0,0.12]
[1745719102384,0.37331606,94262.0,94261.0,0.12]
[1745719102688,0.3608,94262.0,94261.0,0.12]
[1745719102892,0.3608,94262.0,94261.0,0.7168877]
[1745719103190,0.0353,94271.0,94270.0,0.2120674]
[1745719103785,0.4040038,94271.0,94261.0,0.12]
[1745719103981,0.3608,94262.0,94261.0,0.12]
[1745719104181,0.3608,94262.0,94249.0,0.2121132]
[1745719104486,0.3883,94261.0,94251.0,0.2121089]
[1745719104879,0.3883,94261.0,94248.0,0.053029]
[1745719105087,0.3937,94261.0,94255.0,0.2120997]
[1745719105289,0.2120903,94260.0,94250.0,0.2121112]
[1745719105494,0.2120926,94259.0,94250.0,0.2121112]
[1745719105684,0.0064,94261.0,94255.0,0.2120999]
[1745719105990,0.0064,94261.0,94253.0,0.0530259]
[1745719106190,0.0064,94261.0,94253.0,0.12]
[1745719106492,0.1913,94260.0,94253.0,0.12]
[1745719107187,0.0064,94261.0,94260.0,0.2120899]
[1745719107891,0.0054,94261.0,94260.0,0.3181779]
[1745719108188,0.0054,94261.0,94260.0,0.4381779]
[1745719108388,0.3608,94262.0,94261.0,0.2120877]
[1745719108590,0.3608,94262.0,94261.0,0.3181757]
[1745719108789,0.3608,94262.0,94261.0,0.7069757]
[1745719108991,0.3961,94271.0,94270.0,0.2120674]
[1745719109292,0.2120563,94275.0,94270.0,0.3320674]
[1745719109494,0.2121057,94253.0,94252.0,0.32822768]
[1745719109686,0.2121552,94231.0,94220.0,0.00106134]
[1745719109885,0.2121552,94231.0,94221.0,0.18932394]
[1745719109886,0.3608,94231.0,94221.0,0.18932394]
[1745719110092,0.3608,94231.0,94220.0,0.00106134]
[1745719110093,0.2121777,94221.0,94220.0,0.00106134]
[1745719110581,0.3982777,94221.0,94220.0,0.00106134]
[1745719111185,0.3982777,94221.0,94220.0,0.00306134]
[1745719111695,0.4022777,94221.0,94220.0,0.00106134]
[1745719112193,0.4022777,94221.0,94201.0,0.1947]
[1745719112194,0.2121845,94218.0,94201.0,0.1947]
[1745719112388,0.58089875,94218.0,94201.0,0.1947]
[1745719112588,0.58089875,94218.0,94192.0,0.53224677]
[1745719112784,0.58089875,94218.0,94196.0,0.1838]
[1745719112999,0.58089875,94218.0,94197.0,0.2122314]
[1745719113290,0.58089875,94218.0,94197.0,0.1911]
[1745719113491,0.58089875,94218.0,94207.0,0.3749]
[1745719113883,0.97159875,94218.0,94217.0,0.00630687]
[1745719114083,0.3688,94218.0,94217.0,0.00630687]
[1745719115896,0.7761845,94218.0,94217.0,0.00630687]
[1745719116089,0.78400795,94218.0,94217.0,0.00630687]
[1745719116394,0.3688,94218.0,94217.0,0.21849357]
[1745719116893,0.3688,94218.0,94217.0,0.00630687]
[1745719117491,1.46076,94218.0,94169.0,0.2122933]
[1745719117687,0.2122701,94180.0,94165.0,0.3608]
[1745719118399,0.2122701,94180.0,94164.0,0.1875]
[1745719118400,0.2122701,94180.0,94167.0,0.08616]
[1745719118592,0.5730701,94180.0,94167.0,0.08616]
[1745719119087,0.3628,94180.0,94169.0,0.0530734]
[1745719119289,0.3628,94180.0,94179.0,0.35177507]
[1745719119290,0.002,94180.0,94179.0,0.35177507]
[1745719119988,0.2142701,94180.0,94179.0,0.03332277]
[1745719120188,0.2142701,94180.0,94179.0,0.41252277]
[1745719121192,0.2142701,94180.0,94179.0,0.23102277]
[1745719121393,0.5750701,94180.0,94179.0,0.23102277]
[1745719122894,0.5750701,94180.0,94179.0,0.03332277]
[1745719125986,0.3628,94180.0,94179.0,0.03332277]
[1745719126186,0.5750701,94180.0,94179.0,0.03332277]
[1745719127891,0.3628,94180.0,94179.0,0.03332277]
[1745719128090,0.3648,94180.0,94179.0,0.03432277]
[1745719128600,0.5770701,94180.0,94179.0,0.03432277]
[1745719129899,0.3648,94180.0,94179.0,0.03432277]
[1745719130197,0.5770701,94180.0,94179.0,0.03432277]
[1745719130403,0.5750701,94180.0,94179.0,0.03332277]
[1745719131399,0.5730701,94180.0,94179.0,0.03332277]
[1745719131599,0.5750701,94180.0,94179.0,0.03332277]
[1745719133698,0.3628,94180.0,94179.0,0.03332277]
[1745719133893,0.5750701,94180.0,94179.0,0.03332277]
[1745719139995,0.5750701,94180.0,94171.0,0.1846]
[1745719139996,0.0530709,94174.0,94170.0,0.1843]
[1745719140203,0.5730904,94171.0,94170.0,0.1843]
[1745719141209,0.36893923,94171.0,94170.0,0.1843]
[1745719141397,0.58122963,94171.0,94170.0,0.1843]
[1745719142495,0.3608,94171.0,94170.0,0.1843]
[1745719142698,0.3618,94171.0,94170.0,0.1843]
[1745719143002,0.3618,94171.0,94170.0,0.3965926]
[1745719143303,0.03522,94176.0,94175.0,0.2122813]
[1745719143604,0.00705,94177.0,94176.0,0.2122791]
[1745719144003,0.00705,94177.0,94176.0,1.09938309]
[1745719144594,0.00705,94177.0,94176.0,0.88710399]
[1745719144807,0.00705,94177.0,94176.0,1.09938309]
[1745719145002,0.5730677,94182.0,94179.0,0.2122701]
[1745719145202,0.2122678,94181.0,94180.0,0.3763]
[1745719145402,0.2122678,94181.0,94180.0,0.48248]
[1745719146706,0.002,94181.0,94180.0,1.4756501]
[1745719146909,0.3608,94209.0,94181.0,0.53089]
[1745719147209,0.3608,94222.0,94217.0,0.2121867]
[1745719147410,0.2121779,94221.0,94217.0,0.2121867]
[1745719147602,0.2173845,94218.0,94217.0,0.106136]
[1745719148103,0.2173845,94218.0,94171.0,0.3608]
[1745719148104,0.62377345,94218.0,94171.0,0.3608]
[1745719148315,0.2123061,94164.0,94163.0,0.1875]
[1745719148609,0.5731061,94164.0,94163.0,0.567]
[1745719148802,0.2123084,94163.0,94162.0,0.00159283]
[1745719149017,0.41477375,94163.0,94162.0,0.00159283]
[1745719150206,0.42830646,94163.0,94162.0,0.00359283]
[1745719151406,0.61824111,94163.0,94162.0,0.00359283]
[1745719151611,0.61824111,94163.0,94162.0,0.37669283]
[1745719152616,0.40593271,94163.0,94162.0,0.37669283]
[1745719152806,0.61824111,94163.0,94162.0,0.37669283]
[1745719154710,0.61824111,94163.0,94162.0,0.3751]
[1745719155507,0.01353271,94163.0,94162.0,0.3751]
[1745719155908,0.001,94163.0,94162.0,0.5707]
[1745719156527,0.001,94163.0,94162.0,0.7830106]
[1745719156717,0.001,94163.0,94162.0,0.5707]
[1745719157914,0.2133084,94163.0,94162.0,0.5707]
[1745719160716,0.2133084,94163.0,94162.0,0.3751]
[1745719161019,0.5904084,94163.0,94162.0,0.002]
[1745719162413,0.5904084,94163.0,94162.0,0.193]
[1745719163516,0.5904084,94163.0,94162.0,0.002]
[1745719166221,0.531,94162.0,94127.0,0.00531194]
[1745719166410,0.5731806,94131.0,94127.0,0.00531194]
[1745719167022,0.3608,94131.0,94128.0,0.1923]
[1745719168217,0.3608,94131.0,94130.0,0.00306235]
[1745719168920,0.3618,94131.0,94130.0,0.21544515]
[1745719169116,0.3618,94131.0,94130.0,0.00306235]
[1745719169419,0.3618,94131.0,94130.0,0.32068115]
[1745719169722,0.001,94131.0,94130.0,0.32068115]
[1745719170420,0.3608,94148.0,94131.0,0.0530951]
[1745719170621,0.3608,94148.0,94130.0,0.22580349]
[1745719170920,0.3608,94148.0,94147.0,0.2123445]
[1745719171513,0.5731422,94148.0,94147.0,0.2123445]
[1745719171713,0.3628,94148.0,94147.0,0.5857445]
[1745719172122,0.3608,94148.0,94147.0,0.5857445]
[1745719172325,0.5741422,94148.0,94147.0,0.5877445]
[1745719172522,0.3618,94148.0,94147.0,0.5877445]
[1745719172825,0.3618,94148.0,94147.0,0.5857445]
[1745719173725,0.001,94148.0,94147.0,0.6919605]
[1745719174225,0.3608,94157.0,94147.0,0.6919605]
[1745719174226,0.3608,94157.0,94156.0,0.2123242]
[1745719174823,0.5731219,94157.0,94156.0,0.3185322]
[1745719175026,0.3608,94157.0,94156.0,0.7000322]
[1745719175525,0.5731219,94157.0,94156.0,0.7000322]
[1745719176022,0.3618,94157.0,94156.0,0.7010322]
[1745719177422,0.3608,94157.0,94156.0,0.7000322]
[1745719177618,0.3618,94157.0,94156.0,0.7020322]
[1745719178021,0.3608,94157.0,94156.0,0.7000322]
[1745719178221,0.3618,94157.0,94156.0,0.7020322]
[1745719178616,0.3608,94157.0,94156.0,0.7020322]
[1745719178814,0.3618,94157.0,94156.0,0.7020322]
[1745719179024,0.3618,94157.0,94156.0,0.5958242]
[1745719179215,0.3608,94157.0,94156.0,0.5948242]
[1745719180624,0.3608,94157.0,94156.0,0.7010322]
[1745719180823,0.3618,94157.0,94156.0,0.5958242]
[1745719181933,0.3608,94157.0,94156.0,0.5938242]
[1745719182137,0.3618,94157.0,94156.0,0.5958242]
[1745719183532,0.3608,94157.0,94156.0,0.5938242]
[1745719183739,0.3618,94157.0,94156.0,0.5948242]
[1745719184635,0.3618,94157.0,94156.0,0.6909042]
[1745719184835,0.3608,94157.0,94156.0,0.6899042]
[1745719185041,0.3618,94157.0,94156.0,0.6909042]
[1745719185424,0.3608,94157.0,94156.0,0.6909042]
[1745719185629,0.3618,94157.0,94156.0,0.6909042]
[1745719186237,0.001,94157.0,94156.0,0.6909042]
[1745719187336,0.00706,94159.0,94158.0,0.2123197]
[1745719187729,0.1941,94165.0,94164.0,0.2123061]
[1745719187937,0.1941,94165.0,94157.0,0.2123199]
[1745719188230,0.2123219,94157.0,94156.0,0.3825]
[1745719188436,0.3608,94159.0,94156.0,0.3825]
[1745719188635,0.3662,94158.0,94156.0,0.1868]
[1745719188822,0.2123219,94157.0,94156.0,0.1868]
[1745719189027,0.3662,94158.0,94156.0,0.1868]
[1745719189231,0.3662,94157.0,94156.0,0.3991242]
[1745719190334,0.3672,94157.0,94156.0,0.4001242]
[1745719190823,0.3662,94157.0,94156.0,0.3991242]
[1745719191029,0.3672,94157.0,94156.0,0.3991242]
[1745719192137,0.3672,94157.0,94146.0,0.1824]
[1745719192339,0.2123422,94148.0,94147.0,0.1897]
[1745719192535,0.3608,94148.0,94147.0,0.1897]
[1745719193038,0.3608,94148.0,94147.0,0.4020445]
[1745719193230,0.3608,94148.0,94147.0,0.1897]
[1745719193639,0.3618,94148.0,94147.0,0.1917]
[1745719194047,0.3618,94148.0,94147.0,0.4040445]
[1745719195233,0.3618,94148.0,94147.0,0.5102605]
[1745719195740,0.001,94148.0,94147.0,0.8710605]
[1745719196537,0.00707,94158.0,94157.0,0.2123219]
[1745719196732,0.16546712,94158.0,94157.0,0.2123219]
[1745719196937,0.16546712,94158.0,94157.0,0.3185259]
[1745719197332,0.16546712,94158.0,94157.0,0.7075259]
[1745719197939,0.16546712,94158.0,94157.0,0.75662313]
[1745719198238,0.20935362,94182.0,94181.0,0.2122678]
[1745719198438,0.20935362,94182.0,94181.0,0.3239878]
[1745719198844,0.20935362,94182.0,94181.0,0.8191638]
[1745719199842,0.2174543,94188.0,94187.0,0.2122543]
[1745719200443,0.2174543,94188.0,94187.0,0.3184263]
[1745719200638,0.2174543,94188.0,94187.0,0.5138263]
[1745719201044,0.2174543,94188.0,94187.0,0.5198263]
[1745719201045,0.2194543,94188.0,94187.0,0.5198263]
[1745719201737,0.0072,94188.0,94187.0,0.5198263]
[1745719202743,0.2122271,94200.0,94187.0,0.5198263]
[1745719202744,0.366,94218.0,94204.0,0.212216]
[1745719203044,0.1878,94210.0,94204.0,0.212216]
[1745719203434,0.366,94218.0,94207.0,0.0530521]
[1745719203638,0.366,94218.0,94210.0,0.2122025]
[1745719204446,0.3867,94217.0,94210.0,0.2122025]
[1745719204645,0.3867,94217.0,94210.0,0.3962025]
[1745719204840,0.3867,94217.0,94208.0,0.04909723]
[1745719205039,0.3608,94209.0,94208.0,0.31435573]
[1745719205234,0.3608,94209.0,94204.0,0.005]
[1745719205541,0.5730137,94205.0,94204.0,0.005]
[1745719205749,0.0530542,94204.0,94191.0,0.04909723]
[1745719205943,0.3608,94192.0,94191.0,0.26134253]
[1745719206742,0.573043,94192.0,94191.0,0.04909723]